bitfinex/quotes_ETHUSD_20240926
["timestamp","ask_amount","ask_price","bid_price","bid_amount"]
[1727365044887,3.76338,2657.2,2656.7,4.598695]
[1727365045037,3.76359,2657.1,2656.5,4.58328]
[1727365045379,3.76359,2657.1,2656.5,4.58326]
[1727365046071,3.76338,2657.2,2656.6,3.76416]
[1727365046283,3.76356,2657.1,2656.6,3.76416]
[1727365046576,3.76356,2657.1,2656.5,0.819]
[1727365046577,3.76413,2656.7,2656.5,0.819]
[1727365046784,3.76449,2656.5,2656.1,0.7557]
[1727365046986,3.76458,2656.4,2656.1,0.7557]
[1727365047478,8.26567665,2656.6,2655.8,3.76521]
[1727365047479,3.85876917,2656.3,2655.8,0.7521]
[1727365047649,4.50137665,2656.6,2655.8,0.7521]
[1727365047650,0.82656767,2656.5,2655.8,0.7521]
[1727365047980,3.76388,2656.9,2656.4,3.76446]
[1727365048187,4.50137665,2657.0,2656.5,0.7841]
[1727365048188,8.26501665,2657.0,2656.5,0.7841]
[1727365048486,6.00423732,2657.0,2656.5,0.7841]
[1727365048654,6.00423732,2657.0,2656.5,4.54833]
[1727365048853,4.50137665,2657.4,2656.8,3.76379]
[1727365049084,3.76302,2657.5,2657.0,3.76362]
[1727365049382,3.7802693,2658.1,2657.5,3.76281]
[1727365049600,0.0181393,2658.1,2657.4,3.76297]
[1727365049879,0.0181393,2658.1,2657.2,0.07525565]
[1727365049880,0.0181393,2658.1,2657.8,3.76239]
[1727365050048,0.0181393,2658.1,2658.0,3.76222]
[1727365050251,0.0181393,2658.1,2657.9,7.52465]
[1727365050583,0.0181393,2658.1,2658.0,3.76222]
[1727365050983,0.0181393,2658.1,2657.9,3.76229]
[1727365051144,0.0181393,2658.1,2658.0,3.76222]
[1727365054385,0.0181393,2658.1,2658.0,5.304971]
[1727365054696,3.7990344,2658.9,2658.0,5.304971]
[1727365054697,0.0380144,2658.9,2658.8,4.57199]
[1727365054984,3.7989644,2658.9,2658.8,0.8109]
[1727365055280,3.76147,2658.6,2658.1,0.8313]
[1727365055692,7.52351,2658.4,2657.7,4.59393]
[1727365055856,3.76175,2658.4,2657.7,4.59393]
[1727365056063,8.26281665,2658.6,2658.1,3.76206]
[1727365056383,8.26281665,2658.6,2657.9,3.76226]
[1727365056587,3.76166,2658.4,2657.9,3.76226]
[1727365056776,3.76166,2658.4,2657.7,4.59386]
[1727365056777,3.85592088,2658.3,2657.7,4.59386]
[1727365056974,3.85592088,2658.3,2657.7,8.35639]
[1727365057282,3.76156,2658.5,2657.7,8.35639]
[1727365057283,3.76176,2658.4,2657.7,4.59383]
[1727365057472,3.76176,2658.4,2657.7,8.3564]
[1727365057674,3.76176,2658.4,2657.8,3.76249]
[1727365057986,7.52351,2658.4,2657.8,3.76249]
[1727365058484,3.76195,2658.2,2657.7,4.59383]
[1727365058656,3.76233,2658.0,2657.4,0.8319]
[1727365058865,4.50137665,2657.8,2657.4,0.8319]
[1727365059190,3.76243,2657.9,2657.4,0.8319]
[1727365059399,3.7623,2658.0,2657.5,3.76282]
[1727365059897,3.76224,2658.0,2657.5,3.7628]
[1727365060190,3.76225,2658.0,2657.5,3.7628]
[1727365060405,3.82510235,2657.9,2657.5,3.7628]
[1727365060555,7.58750235,2657.9,2657.4,0.8319]
[1727365060763,3.76259,2657.8,2657.4,0.8319]
[1727365060956,7.58750235,2657.9,2657.4,4.59497]
[1727365061178,3.82510235,2657.9,2657.4,0.8319]
[1727365061493,3.82510235,2657.9,2657.5,3.76293]
[1727365061666,3.82510235,2657.9,2657.6,3.76279]
[1727365062067,7.58756235,2657.9,2657.4,0.8319]
[1727365062273,11.35001235,2657.9,2657.4,0.8319]
[1727365062460,7.58755235,2657.9,2657.4,4.59486]
[1727365063056,3.82510235,2657.6,2657.4,0.8319]
[1727365064858,7.58792235,2657.6,2657.1,4.5749]
[1727365065061,3.82510235,2657.6,2657.2,3.76329]
[1727365065262,3.82510235,2657.6,2657.3,3.76321]
[1727365065463,3.82510235,2657.9,2657.6,3.7627]
[1727365065691,3.82510235,2658.2,2657.7,4.94722]
[1727365065888,3.82510235,2658.2,2657.8,3.76249]
[1727365066099,3.82510235,2658.2,2657.9,3.76231]
[1727365066297,3.82510235,2658.2,2657.7,1.18467]
[1727365066524,3.82510235,2658.2,2657.9,3.76229]
[1727365066680,7.58704235,2658.2,2657.8,3.76237]
[1727365066880,7.58704235,2658.2,2657.7,4.57105]
[1727365067075,3.82510235,2658.2,2657.7,4.57105]
[1727365067320,7.58711235,2658.2,2657.7,4.57105]
[1727365067489,3.82510235,2657.9,2657.7,0.8084]
[1727365068904,7.58747235,2657.9,2657.5,3.76283]
[1727365069106,3.82510235,2657.9,2657.5,3.76283]
[1727365069302,3.82510235,2657.6,2657.4,0.7821]
[1727365069620,3.82510235,2657.6,2657.5,3.76293]
[1727365069778,3.82510235,2657.6,2657.4,0.7821]
[1727365069980,3.82510235,2657.6,2657.4,4.54517]
[1727365070213,3.82510235,2657.6,2657.5,3.76293]
[1727365070906,3.82510235,2657.9,2657.5,3.76293]
[1727365071422,3.82510235,2657.9,2657.6,3.76272]
[1727365071783,3.82510235,2657.9,2657.8,3.76251]
[1727365073426,3.82510235,2658.2,2658.1,3.76208]
[1727365074470,3.82510235,2658.8,2658.2,0.7845]
[1727365074639,3.82510235,2658.8,2658.0,3.76222]
[1727365074640,3.82510235,2658.8,2658.7,4.51173]
[1727365074841,0.0380144,2658.9,2658.8,3.76109]
[1727365076766,0.0380144,2658.9,2658.8,4.2874644]
[1727365076968,0.0380144,2660.5,2659.5,0.7505]
[1727365076969,3.86311675,2659.7,2659.5,0.7505]
[1727365077269,0.0380144,2659.7,2659.6,3.75996]
[1727365077467,0.0380144,2659.7,2659.6,4.58702]
[1727365077691,3.86311675,2659.7,2658.8,4.968299]
[1727365077981,3.86311675,2659.7,2658.8,1.207259]
[1727365077982,3.82510235,2659.2,2658.8,1.207259]
[1727365078181,3.82510235,2658.9,2658.8,0.7561]
[1727365078344,0.0380144,2659.7,2658.8,0.7561]
[1727365078345,3.76029,2659.4,2658.8,0.7561]
[1727365078547,3.82510235,2659.1,2658.8,0.7561]
[1727365078861,3.82510235,2659.1,2658.8,4.51708]
[1727365079052,3.82510235,2659.1,2658.9,4.212648]
[1727365079251,3.82510235,2659.1,2658.8,0.7561]
[1727365080778,3.82510235,2659.1,2658.8,4.51713]
[1727365081093,3.82510235,2659.1,2659.0,3.76081]
[1727365081797,3.82510235,2659.5,2659.2,3.76042]
[1727365082089,0.0380144,2659.7,2659.4,3.76014]
[1727365082310,0.0380144,2659.7,2659.6,3.75996]
[1727365082587,0.0380144,2659.7,2659.6,4.55326]
[1727365083178,0.0380144,2660.5,2660.4,0.75]
[1727365083380,0.0380144,2660.5,2660.4,4.50883]
[1727365083685,0.0380144,2660.5,2660.4,5.33561]
[1727365084062,0.0380144,2661.3,2661.1,3.75771]
[1727365084256,0.0380144,2661.3,2661.2,0.7755]
[1727365084898,3.86311675,2661.3,2661.2,0.7755]
[1727365085050,3.86311675,2661.3,2660.9,4.909424]
[1727365085249,3.86311675,2661.3,2660.9,1.151314]
[1727365085577,0.09393979,2661.2,2660.9,0.7755]
[1727365085763,3.75783,2661.2,2660.6,0.7755]
[1727365085949,3.75783,2661.2,2660.4,0.82678]
[1727365085950,3.82510235,2660.7,2660.4,0.82678]
[1727365086150,0.0049912,2661.2,2660.6,3.75855]
[1727365086399,0.0049912,2661.2,2660.9,0.8014]
[1727365086890,0.0049912,2661.2,2660.9,5.015369]
[1727365087201,0.0049912,2661.2,2661.0,3.83309888]
[1727365087361,0.0049912,2661.2,2661.0,0.07514888]
[1727365087687,0.0049912,2661.2,2660.9,4.55939]
[1727365087861,0.0049912,2661.2,2660.9,0.8014]
[1727365088061,7.58782355,2661.2,2660.5,0.8324]
[1727365088265,3.83009355,2661.2,2660.5,5.050199]
[1727365088452,3.7626912,2661.2,2660.5,5.050199]
[1727365088794,3.7626912,2661.2,2660.5,1.291519]
[1727365089057,0.0049912,2661.2,2660.6,3.75853]
[1727365089339,0.0049912,2661.2,2660.7,0.58016256]
[1727365089539,0.0049912,2661.2,2660.5,0.8324]
[1727365089694,3.7627212,2661.2,2660.5,0.8324]
[1727365089890,3.75881,2660.5,2659.8,0.7623]
[1727365090144,8.23971874,2660.4,2659.8,0.7623]
[1727365090434,4.30901,2660.3,2659.8,0.7623]
[1727365090619,3.75853,2660.7,2659.8,0.7623]
[1727365090826,3.75853,2660.7,2659.8,4.52197]
[1727365091136,3.75853,2660.7,2659.6,3.75995]
[1727365091137,0.0049912,2660.8,2660.2,3.75911]
[1727365091292,0.0049912,2660.8,2660.3,4.134871]
[1727365091496,0.0049912,2660.8,2660.4,3.75881]
[1727365091791,0.0049912,2660.8,2660.1,3.75925]
[1727365091792,0.5549912,2660.8,2660.1,3.75925]
[1727365092119,0.0049912,2660.8,2660.7,4.5493]
[1727365092330,0.0435386,2661.7,2661.1,3.75776]
[1727365092530,0.0435386,2661.7,2660.9,3.75811]
[1727365092766,0.0435386,2661.7,2661.5,0.8182]
[1727365093073,0.0435386,2661.7,2661.6,3.75713]
[1727365093364,0.0435386,2663.5,2661.7,0.8286]
[1727365093365,3.75504,2663.1,2661.7,0.8286]
[1727365093664,5.28944874,2663.2,2661.7,0.8286]
[1727365093665,4.48074874,2662.8,2661.7,4.58551]
[1727365093864,3.7992786,2662.6,2661.7,4.58551]
[1727365094173,0.0435386,2662.6,2662.0,0.7729]
[1727365094377,0.0435386,2662.6,2662.0,4.52934]
[1727365094542,3.75517,2663.0,2662.1,0.452934]
[1727365094543,3.75559,2662.7,2662.1,0.452934]
[1727365094878,8.23634874,2662.7,2661.6,0.7729]
[1727365095075,3.75533,2662.9,2661.6,0.7729]
[1727365095076,4.48074874,2662.3,2661.6,0.7729]
[1727365095257,0.82363487,2662.6,2661.6,0.7729]
[1727365095569,3.75603,2662.4,2661.6,0.7729]
[1727365096676,4.48074874,2662.3,2661.6,0.7729]
[1727365096825,3.0867692,2662.3,2661.6,0.7729]
[1727365097021,3.0867692,2662.3,2661.7,0.453014]
[1727365097428,3.0867692,2662.3,2661.6,0.7729]
[1727365097940,6.8429192,2662.3,2661.6,0.7729]
[1727365098322,3.75562,2662.7,2661.9,3.75667]
[1727365098522,3.75562,2662.7,2661.8,3.75685]
[1727365098723,3.75586,2662.5,2661.9,0.375685]
[1727365099000,3.75563,2662.7,2661.8,3.75674]
[1727365099140,3.75561,2662.7,2661.9,3.7567]
[1727365099340,3.7558,2662.6,2661.8,3.75674]
[1727365099543,3.75587,2662.5,2661.9,0.375674]
[1727365099732,0.55,2662.6,2661.9,0.375674]
[1727365100079,3.75601,2662.4,2661.9,0.375674]
[1727365100255,3.75601,2662.4,2661.6,4.53002]
[1727365100629,3.75601,2662.4,2661.6,0.7729]
[1727365100871,0.55,2662.6,2661.6,0.7729]
[1727365100872,3.75644,2662.1,2661.6,0.7729]
[1727365101046,3.75632,2662.2,2661.3,0.7535]
[1727365101047,3.75681,2661.9,2661.3,0.7535]
[1727365101249,3.7567,2662.0,2661.3,0.7535]
[1727365101568,3.7568,2661.9,2661.3,1.204623]
[1727365102470,3.7568,2661.9,2661.3,4.962173]
[1727365102671,3.75714,2661.6,2661.0,0.8172]
[1727365102831,3.75728,2661.5,2661.0,0.8172]
[1727365103029,3.7577,2661.3,2660.7,1.24723]
[1727365103278,3.75779,2661.2,2660.7,0.7923]
[1727365103463,3.75779,2661.2,2660.3,8.31003]
[1727365103464,3.75799,2661.0,2660.3,8.31003]
[1727365103774,3.75779,2661.2,2660.3,4.55116]
[1727365103978,3.75821,2660.9,2660.3,4.55118]
[1727365104188,3.75788,2661.1,2660.4,3.75874]
[1727365104408,7.51584,2661.1,2660.5,3.75868]
[1727365104690,3.75816,2660.9,2660.3,4.55118]
[1727365104894,3.75816,2660.9,2660.4,0.455118]
[1727365105277,8.23862874,2661.1,2660.4,4.213898]
[1727365105443,3.75799,2661.0,2660.4,4.213898]
[1727365105787,8.23862874,2661.1,2660.4,0.455118]
[1727365105947,3.75809,2661.0,2660.4,0.455118]
[1727365106145,0.55,2661.4,2660.5,0.5006298]
[1727365106146,3.75767,2661.3,2660.5,0.5006298]
[1727365106449,3.75587,2662.5,2661.4,0.8129]
[1727365106450,5.30444874,2662.5,2661.4,0.8129]
[1727365106776,3.75687,2661.8,2661.1,4.53904]
[1727365106951,3.75707,2661.7,2661.1,5.36875]
[1727365107149,3.75687,2661.8,2661.2,3.75759]
[1727365107685,3.75701,2661.7,2661.1,1.61101]
[1727365107986,3.75687,2661.8,2661.1,5.36882]
[1727365108204,3.75687,2661.8,2661.2,4.294556]
[1727365108489,3.75629,2662.2,2661.4,3.75737]
[1727365108683,5.30444874,2662.5,2661.4,3.75737]
[1727365108684,3.75651,2662.1,2661.5,3.75726]
[1727365108898,3.75667,2662.0,2661.5,0.751463]
[1727365109047,3.75714,2661.6,2661.1,0.82971]
[1727365109388,4.48074874,2661.7,2661.1,0.82971]
[1727365109685,3.75755,2661.4,2660.9,0.8095]
[1727365109888,3.7577,2661.2,2660.9,0.8095]
[1727365110089,3.7577,2661.2,2660.6,4.56795]
[1727365110290,3.75758,2661.3,2660.7,0.456795]
[1727365110497,7.51527,2661.3,2660.7,0.456795]
[1727365110646,3.75758,2661.3,2660.7,0.456795]
[1727365110847,3.75762,2661.3,2660.6,0.8095]
[1727365111051,3.75762,2661.3,2660.6,4.56796]
[1727365111652,3.75813,2660.9,2660.4,3.75882]
[1727365111955,3.75784,2661.1,2660.6,3.75854]
[1727365112097,3.75776,2661.2,2660.6,3.75854]
[1727365112298,8.99575874,2661.3,2660.6,8.27613524]
[1727365112299,8.23835874,2661.3,2660.6,8.27613524]
[1727365112539,8.23835874,2661.3,2660.7,3.75839]
[1727365113040,8.23835874,2661.3,2660.7,3.83354763]
[1727365113241,8.23835874,2661.3,2660.7,3.75839]
[1727365113447,3.7577,2661.2,2660.6,3.75844]
[1727365113749,3.75761,2661.3,2660.7,0.07515763]
[1727365113950,3.75752,2661.4,2660.8,3.75825]
[1727365114107,3.75734,2661.5,2660.8,3.75825]
[1727365114108,3.75758,2661.3,2660.8,3.75825]
[1727365114446,3.75734,2661.5,2660.8,4.509831]
[1727365114638,3.75743,2661.4,2660.8,4.509831]
[1727365114801,3.75734,2661.5,2660.8,4.509831]
[1727365115121,4.48074874,2661.7,2661.0,3.75788]
[1727365115346,3.75717,2661.6,2661.0,3.75788]
[1727365116353,3.7573,2661.5,2660.9,4.56759]
[1727365116658,3.7573,2661.5,2661.0,3.75798]
[1727365116861,4.48074874,2661.7,2660.9,0.8095]
[1727365117030,3.75821,2660.9,2660.5,0.7745]
[1727365118416,3.75794,2661.1,2660.5,4.986516]
[1727365118619,3.75819,2660.9,2660.5,0.7745]
[1727365118818,0.09396098,2660.8,2660.0,3.75926]
[1727365119131,3.75871,2660.5,2660.0,3.75937]
[1727365119328,3.75871,2660.5,2660.0,4.59306486]
[1727365120068,3.75848,2660.7,2660.1,3.75922]
[1727365120355,3.7587,2660.5,2660.0,4.59306486]
[1727365120729,8.23944874,2660.5,2659.9,0.7745]
[1727365121136,3.75904,2660.3,2659.9,0.7745]
[1727365121345,3.75829,2660.8,2659.8,0.0435386]
[1727365121346,4.48074874,2660.1,2659.8,0.0435386]
[1727365121549,3.75953,2659.9,2659.8,0.0435386]
[1727365122069,3.7595,2660.0,2659.8,0.0435386]
[1727365122555,4.30953,2659.9,2659.8,0.0435386]
[1727365123124,5.08663,2659.9,2659.8,0.0435386]
[1727365126329,8.90734039,2659.9,2659.8,0.0435386]
[1727365126641,8.35734039,2659.9,2659.8,0.0435386]
[1727365126846,3.82071039,2660.5,2659.8,0.0435386]
[1727365127041,3.75891,2660.4,2659.8,3.8031086]
[1727365127231,3.75848,2660.7,2659.9,0.83146195]
[1727365127429,3.75848,2660.7,2660.0,0.7875]
[1727365127627,3.75736,2661.5,2660.7,3.75836]
[1727365127864,3.75753,2661.4,2660.6,3.75854]
[1727365128033,3.75753,2661.4,2660.8,4.55475]
[1727365128372,3.7575,2661.4,2660.9,0.455475]
[1727365128576,8.23797449,2661.6,2661.0,3.75795]
[1727365129079,3.75728,2661.5,2660.8,0.7966]
[1727365129238,3.75754,2661.4,2660.8,4.55485]
[1727365129446,3.75754,2661.4,2660.9,0.455485]
[1727365129644,8.23796449,2661.6,2660.9,4.213595]
[1727365129842,3.75729,2661.5,2660.9,4.213595]
[1727365130396,3.75732,2661.5,2660.9,4.213505]
[1727365130760,7.51442,2661.6,2660.9,4.213505]
[1727365130962,3.75719,2661.6,2661.0,4.2589405]
[1727365131162,3.75719,2661.6,2661.0,0.5010105]
[1727365131682,8.23796449,2661.6,2661.0,0.5010105]
[1727365132294,3.75744,2661.4,2661.0,0.5010105]
[1727365132898,3.75744,2661.4,2660.9,0.455485]
[1727365133564,3.75744,2661.4,2660.8,0.7966]
[1727365133976,3.75772,2661.2,2660.8,0.7966]
[1727365134211,3.75744,2661.4,2660.8,0.7966]
[1727365134212,3.75767,2661.3,2660.8,0.7966]
[1727365134501,3.75772,2661.2,2660.8,0.7966]
[1727365134703,3.75744,2661.4,2660.8,0.7966]
[1727365134907,3.75825,2660.9,2660.4,0.7802]
[1727365135078,4.48077449,2660.8,2660.4,0.7802]
[1727365135266,8.23905449,2660.8,2660.4,0.7802]
[1727365135467,3.75841,2660.7,2660.4,0.7802]
[1727365135873,4.48077449,2660.8,2660.4,4.53902]
[1727365136204,4.48077449,2660.8,2660.4,5.368817]
[1727365136583,4.48077449,2660.8,2660.4,1.609997]
[1727365137277,4.48077449,2661.2,2660.6,3.75853]
[1727365137480,5.26877449,2661.6,2660.7,0.07515514]
[1727365137769,3.75787,2661.1,2660.6,3.75852]
[1727365137964,9.55280194,2661.6,2660.8,3.75813]
[1727365138192,3.75752,2661.4,2660.8,7.51632]
[1727365138377,3.75728,2661.5,2660.9,3.75812]
[1727365138601,3.75728,2661.5,2661.0,3.75798]
[1727365138904,3.75737,2661.5,2660.9,3.7581]
[1727365139209,3.75737,2661.5,2660.9,0.375813]
[1727365139364,3.7576,2661.3,2660.9,0.375813]
[1727365140161,7.51527,2661.3,2660.6,3.75846]
[1727365140361,3.7576,2661.3,2660.6,3.75842]
[1727365140793,3.7576,2661.3,2660.8,3.75826]
[1727365141109,3.75754,2661.4,2660.9,0.375826]
[1727365141401,3.75754,2661.4,2660.8,7.5164]
[1727365141633,3.75754,2661.4,2660.8,3.75815]
[1727365141976,3.75737,2661.5,2661.0,3.75798]
[1727365142206,3.75744,2661.4,2660.8,7.51633]
[1727365142410,3.7579,2661.1,2660.4,4.53895]
[1727365142612,3.7579,2661.1,2660.6,3.75844]
[1727365143075,3.75809,2661.0,2660.4,4.53895]
[1727365143279,8.23854449,2661.2,2660.5,3.75867]
[1727365143483,3.75787,2661.1,2660.6,3.75854]
[1727365143691,8.23854449,2661.2,2660.6,3.75845]
[1727365143899,11.99633449,2661.2,2660.6,3.75845]
[1727365144106,0.0046358,2661.1,2660.6,3.75845]
[1727365144296,3.75814,2660.9,2660.4,0.7802]
[1727365144608,4.48077449,2660.8,2660.4,4.539]
[1727365144814,3.7625558,2661.1,2660.4,0.7802]
[1727365145015,3.75799,2661.0,2660.4,0.7802]
[1727365145167,3.7582,2660.9,2660.4,4.53896]
[1727365145368,3.7582,2660.9,2660.4,0.7802]
[1727365145369,3.75835,2660.8,2660.4,0.7802]
[1727365145601,3.7582,2660.9,2660.4,4.53901]
[1727365145814,0.0046358,2661.1,2660.6,3.75854]
[1727365145970,0.0046358,2661.1,2660.4,5.368692]
[1727365145971,3.7625458,2661.1,2660.4,5.368692]
[1727365146371,3.75799,2661.0,2660.4,5.368692]
[1727365146569,3.75799,2661.0,2660.1,0.0323578]
[1727365146570,3.75881,2660.5,2660.1,0.0323578]
[1727365146832,3.75845,2660.7,2660.1,0.0323578]
[1727365146833,3.7585,2660.7,2660.1,3.7916078]
[1727365146973,3.75857,2660.6,2660.1,0.0323578]
[1727365147168,4.48077449,2660.4,2660.1,0.0323578]
[1727365148383,8.23963449,2660.4,2660.1,0.0323578]
[1727365149011,3.75898,2660.3,2660.1,0.0323578]
[1727365150204,3.75872,2660.5,2660.1,0.0323578]
[1727365150389,3.81719979,2660.6,2660.1,0.0323578]
[1727365150576,0.7832,2661.0,2660.3,3.75887]
[1727365150577,7.57524979,2661.0,2660.3,3.75887]
[1727365150775,3.7582,2660.9,2660.4,0.455497]
[1727365150975,7.57524979,2661.0,2660.4,0.455497]
[1727365150976,3.75828,2660.8,2660.4,0.455497]
[1727365151185,7.57524979,2661.0,2660.4,4.214307]
[1727365151415,3.81719979,2661.0,2660.6,3.75846]
[1727365152085,3.75826,2660.9,2660.5,0.4214307]
[1727365152296,3.81719979,2660.7,2660.2,8.31416]
[1727365152497,3.81719979,2660.7,2660.2,4.55512]
[1727365152711,3.81719979,2660.7,2660.3,3.75889]
[1727365153517,3.81719979,2660.7,2660.3,7.51774]
[1727365153812,3.81719979,2660.7,2660.4,4.590194]
[1727365154021,3.81719979,2660.7,2660.3,3.75885]
[1727365154833,3.75911,2660.2,2660.1,2.0323578]
[1727365155039,3.76024,2659.4,2659.3,0.0382843]
[1727365155324,8.32947979,2659.4,2659.3,0.0382843]
[1727365155628,4.51228,2659.4,2659.3,0.0382843]
[1727365155789,3.76111,2658.8,2658.6,0.8156]
[1727365156235,3.76111,2658.8,2658.5,0.0382843]
[1727365156531,3.81719979,2658.8,2658.5,0.0382843]
[1727365156829,7.57795979,2659.1,2658.5,3.7997043]
[1727365157044,3.81719979,2659.1,2658.5,4.63740873]
[1727365157327,7.57789979,2659.1,2658.5,4.63740873]
[1727365157685,3.76084,2659.0,2658.5,4.63740873]
[1727365157882,3.76107,2658.9,2658.5,0.0382843]
[1727365158101,3.76084,2659.0,2658.5,0.0382843]
[1727365158322,7.57787979,2659.1,2658.5,0.0382843]
[1727365158526,3.76081,2659.0,2658.5,0.0382843]
[1727365159138,3.76072,2659.1,2658.5,0.0382843]
[1727365159730,3.76089,2659.0,2658.5,0.0382843]
[1727365159935,3.76072,2659.1,2658.5,3.7997843]
[1727365160091,3.76083,2659.0,2658.5,0.0382843]
[1727365160446,3.76016,2659.5,2658.9,3.76094]
[1727365160447,3.76019,2659.5,2658.9,3.76094]
[1727365160845,3.76019,2659.5,2658.9,3.76085]
[1727365161047,3.76019,2659.5,2658.7,3.76115]
[1727365161048,3.76039,2659.3,2658.7,3.76115]
[1727365161253,12.00919373,2659.3,2658.7,4.59744043]
[1727365161424,3.76069,2659.1,2658.6,4.56334]
[1727365161606,3.76069,2659.1,2658.6,0.802]
[1727365161812,4.48832373,2658.9,2658.5,0.0382843]
[1727365162143,3.76128,2658.7,2658.5,0.0382843]
[1727365162448,8.24935373,2658.9,2658.5,0.0382843]
[1727365162449,8.24928373,2658.9,2658.5,0.0382843]
[1727365162750,3.76132,2658.7,2658.5,0.0382843]
[1727365162929,8.24933373,2658.9,2658.5,0.0382843]
[1727365163146,3.76134,2658.7,2658.5,0.0382843]
[1727365163447,3.76125,2658.7,2658.5,0.0382843]
[1727365164848,3.76137,2658.6,2658.5,0.0382843]
[1727365165147,3.76125,2658.7,2658.5,0.0382843]
[1727365165710,3.76137,2658.6,2658.5,0.0382843]
[1727365165910,4.513632,2658.6,2658.5,0.0382843]
[1727365166508,0.752262,2658.6,2658.5,0.0382843]
[1727365166816,3.76125,2658.7,2658.5,0.0382843]
[1727365167220,3.76137,2658.6,2658.5,0.0382843]
[1727365167548,3.76194,2658.2,2657.8,0.7997]
[1727365167711,4.48832373,2658.1,2657.8,0.7997]
[1727365167923,9.04225373,2659.2,2658.4,3.76155]
[1727365168127,0.7933,2659.5,2658.6,0.7997]
[1727365168378,4.48832373,2659.6,2658.9,3.76086]
[1727365168531,4.48832373,2659.6,2659.0,0.376086]
[1727365168874,4.48832373,2659.6,2659.1,0.7997]
[1727365169057,4.48832373,2659.6,2659.1,4.56026]
[1727365169426,4.48832373,2659.6,2659.3,3.76038]
[1727365169934,4.48832373,2659.6,2659.1,4.56026]
[1727365170241,8.24830373,2659.6,2658.8,0.7566]
[1727365170444,3.76026,2659.4,2658.8,4.51761]
[1727365170772,8.24885373,2659.2,2658.8,0.7566]
[1727365170929,4.48832373,2659.2,2658.8,0.7566]
[1727365171479,4.48832373,2659.2,2658.8,4.51759]
[1727365171677,4.48832373,2659.2,2658.8,8.2786]
[1727365171841,4.48832373,2659.2,2658.8,0.7566]
[1727365172164,8.24894373,2659.2,2658.8,0.7566]
[1727365172373,4.48832373,2659.2,2658.8,4.5176]
[1727365172544,4.48832373,2659.2,2658.8,4.96936]
[1727365172871,4.48832373,2659.2,2658.8,0.7566]
[1727365173446,4.48832373,2659.2,2658.4,4.57737]
[1727365174034,3.0,2659.7,2659.1,0.767]
[1727365174230,0.0046358,2659.8,2659.6,3.75995]
[1727365174474,0.0046358,2659.8,2659.7,0.7816]
[1727365174692,0.0046358,2659.8,2659.7,4.54142]
[1727365175465,0.0046358,2659.8,2659.4,7.52031]
[1727365175646,0.0046358,2659.8,2659.4,3.76015]
[1727365175844,0.0046358,2659.8,2659.4,4.214325]
[1727365176245,0.0046358,2659.8,2659.4,3.76024]
[1727365176477,0.0046358,2659.8,2659.3,0.7816]
[1727365176681,0.0046358,2659.8,2659.3,4.54186]
[1727365176838,0.0046358,2659.8,2659.3,0.7816]
[1727365177237,3.7643258,2659.8,2659.3,0.7816]
[1727365177478,0.0046358,2659.8,2659.3,4.54189]
[1727365177786,3.75996,2659.6,2659.0,4.58469]
[1727365178087,0.38105338,2659.8,2659.0,0.8239]
[1727365178283,3.75996,2659.6,2658.9,3.76082]
[1727365178452,3.75996,2659.6,2659.0,3.7608]
[1727365178649,3.76035,2659.4,2658.8,3.76099]
[1727365179056,3.76035,2659.4,2658.6,3.76128]
[1727365179253,0.7749,2659.6,2659.0,3.76081]
[1727365179451,0.0046358,2659.8,2659.3,3.76026]
[1727365179868,0.0046358,2659.8,2659.3,7.52055]
[1727365180071,0.0046358,2659.8,2659.3,3.76026]
[1727365180387,0.0046358,2659.8,2659.2,3.76047]
[1727365180592,0.0046358,2659.8,2659.3,3.76027]
[1727365180940,0.0046358,2659.8,2659.3,7.52057]
[1727365181145,0.0046358,2659.8,2659.3,3.76027]
[1727365181454,3.7643958,2659.8,2659.2,3.76051]
[1727365181789,4.59427238,2659.8,2659.1,4.58452]
[1727365181954,4.59427238,2659.8,2659.1,4.58448]
[1727365182156,0.0046358,2659.8,2659.7,3.75982]
[1727365182381,0.0046358,2659.8,2659.4,3.76014]
[1727365182756,3.75995,2659.7,2659.1,0.8239]
[1727365182979,0.0046358,2659.8,2659.5,3.76008]
[1727365183493,0.0046358,2659.8,2659.7,3.75982]
[1727365183641,0.0046358,2659.8,2659.6,3.75996]
[1727365184085,0.0046358,2659.8,2659.5,4.512117]
[1727365184290,0.0046358,2659.8,2659.5,0.752037]
[1727365184579,0.0046358,2659.8,2659.4,3.76017]
[1727365184768,0.0046358,2659.8,2659.6,3.75995]
[1727365184970,0.0046358,2659.8,2659.6,3.75988]
[1727365186092,0.0046358,2659.8,2659.7,3.75982]
[1727365186274,0.0046358,2659.8,2659.7,4.59072]
[1727365186455,0.0046358,2659.8,2659.7,1.66596]
[1727365187030,0.0046358,2659.8,2659.7,0.8309]
[1727365187327,0.0046358,2659.8,2659.4,3.76013]
[1727365187328,0.0046358,2659.8,2659.4,4.57803]
[1727365187821,0.0046358,2659.8,2659.4,0.8179]
[1727365188495,0.0046358,2659.8,2659.4,4.57806]
[1727365188704,0.0046358,2659.8,2659.5,0.833837]
[1727365189238,0.0046358,2659.8,2659.5,3.76]
[1727365189518,0.0046358,2659.8,2659.6,3.75988]
[1727365190218,0.0046358,2659.8,2659.5,3.76009]
[1727365190426,0.0046358,2659.8,2659.7,3.75982]
[1727365190663,3.76067,2659.1,2659.0,1.0]
[1727365190942,8.37755115,2659.1,2659.0,1.0]
[1727365192398,9.04920414,2659.1,2659.0,1.0]
[1727365193954,9.59920414,2659.1,2659.0,1.0]
[1727365194708,8.25137414,2658.2,2657.7,0.0382843]
[1727365194913,4.48943414,2658.2,2657.7,0.0382843]
[1727365195112,3.76224,2658.0,2657.7,0.0382843]
[1727365195449,4.58233,2658.3,2657.7,0.0382843]
[1727365195654,3.76153,2658.5,2657.7,0.0382843]
[1727365196004,3.76166,2658.4,2657.7,0.0382843]
[1727365196207,5.31393414,2659.1,2657.8,0.8044]
[1727365196606,3.76163,2658.5,2657.8,0.8044]